[Event "WYCC 2018 G14"]
[Site "Halkidiki"]
[Date "2018.10.24"]
[Round "6"]
[White "Zaritovskaja, Margarita"]
[Black "Ehsani, Yassamin"]
[Result "0-1"]
[ECO "B42"]
[WhiteElo "1731"]
[BlackElo "1875"]
[Annotator "NA"]
[PlyCount "100"]
[EventDate "2018.10.20"]
[EventType "swiss"]
[EventCountry "GRE"]
[SourceTitle "playchess.com"]
[Source "ChessBase"]
[SourceQuality "1"]
[TimeControl "40/5400+30:1800+30"]

1. e4 {[%emt 0:00:00]} c5 {[%emt 0:00:00]} 2. Nf3 {[%emt 0:00:00]} e6 {[%emt 0:00:00]} 3. d4 {[%emt 0:00:00]} cxd4 {[%emt 0:00:00]} 4. Nxd4 {[%emt 0:00:00]} a6 {[%emt 0:00:04]} 5. Bd3 {[%emt 0:00:00]} Nc6 {[%emt 0:00:11]} 6. Nxc6 {[%emt 0:02:02]} dxc6 {[%emt 0:00:17]} 7. O-O {[%emt 0:00:44]} e5 {[%emt 0:00:14]} 8. Nc3 {[%emt 0:01:42]} Bd6 {[%emt 0:01:01]} 9. Kh1 {[%emt 0:04:40]} Ne7 {[%emt 0:06:55]} 10. Ne2 {[%emt 0:13:46]} O-O {[%emt 0:03:59]} 11. f4 {[%emt 0:05:22]} exf4 {[%emt 0:01:05]} 12. Nxf4 {[%emt 0:00:33]} Ng6 {[%emt 0:03:22]} 13. Nxg6 {[%emt 0:06:53]} hxg6 {[%emt 0:00:21]} 14. Qf3 {[%emt 0:05:44]} Be6 {[%emt 0:09:02]} 15. Bf4 {[%emt 0:04:51]} Qc7 {[%emt 0:06:47]} 16. Bxd6 {[%emt 0:05:26]} Qxd6 {[%emt 0:00:16]} 17. Rad1 {[%emt 0:00:24]} Qe5 {[%emt 0:00:59]} 18. b3 {[%emt 0:01:24]} Rad8 {[%emt 0:00:56]} 19. Qf4 {[%emt 0:02:04]} Qxf4 {[%emt 0:05:47]} 20. Rxf4 {[%emt 0:00:04]} f6 {[%emt 0:09:34]} 21. h3 {[%emt 0:04:46]} c5 {[%emt 0:03:15]} 22. Re1 {[%emt 0:06:58]} Rd4 {[%emt 0:01:22]} 23. Rff1 {[%emt 0:10:11]} b5 {[%emt 0:02:28]} 24. Rd1 {[%emt 0:08:21]} Rfd8 {[%emt 0:03:18]} 25. Be2 {[%emt 0:00:38]} Kf7 {[%emt 0:01:30]} 26. Kg1 {[%emt 0:01:24]} Ke7 {[%emt 0:01:28]} 27. Bf3 {[%emt 0:01:44]} Rd2 {[%emt 0:01:27]} 28. Rxd2 {[%emt 0:00:45]} Rxd2 {[%emt 0:00:13]} 29. Rf2 {[%emt 0:00:04]} Rd4 {[%emt 0:00:42]} 30. Kf1 {[%emt 0:01:41]} Kd6 {[%emt 0:01:02]} 31. Ke1 {[%emt 0:00:39]} Ke5 {[%emt 0:01:03]} 32. Rd2 {[%emt 0:00:39]} Bc8 {[%emt 0:01:58]} 33. c3 {[%emt 0:02:13]} Rxd2 {[%emt 0:00:32]} 34. Kxd2 {[%emt 0:00:05]} Kf4 {[%emt 0:00:31]} 35. a3 {[%emt 0:03:33]} Bxh3 {[%emt 0:01:31]} 36. e5 {[%emt 0:01:33]} Bc8 {[%emt 0:01:43]} 37. exf6 {[%emt 0:00:27]} gxf6 {[%emt 0:00:25]} 38. Kd3 {[%emt 0:01:57]} Bf5+ {[%emt 0:00:24]} 39. Kd2 {[%emt 0:00:35]} Be4 {[%emt 0:00:14]} 40. Be2 {[%emt 0:00:00]} Bxg2 {[%emt 0:00:00]} 41. c4 {[%emt 0:03:34]} Bc6 {[%emt 0:00:54]} 42. Bd3 {[%emt 0:00:57]} g5 {[%emt 0:00:14]} 43. Ke2 {[%emt 0:00:24]} g4 {[%emt 0:00:12]} 44. Kf2 {[%emt 0:00:23]} g3+ {[%emt 0:00:14]} 45. Kg1 {[%emt 0:00:26]} f5 {[%emt 0:00:52]} 46. Bf1 {[%emt 0:01:00]} Ke3 {[%emt 0:00:25]} 47. a4 {[%emt 0:02:22]} bxa4 {[%emt 0:00:27]} 48. bxa4 {[%emt 0:00:02]} f4 {[%emt 0:00:46]} 49. a5 {[%emt 0:00:05]} f3 {[%emt 0:00:16]} 50. Bg2 {[%emt 0:00:10]} f2+ {[%emt 0:00:15]} 0-1

[Event "WYCC 2018 G14"]
[Site "Halkidiki"]
[Date "2018.10.24"]
[Round "6"]
[White "Yellamraju, Ambica"]
[Black "Toncheva, Nadya"]
[Result "0-1"]
[ECO "D25"]
[WhiteElo "1647"]
[BlackElo "2002"]
[Annotator "NA"]
[PlyCount "122"]
[EventDate "2018.10.20"]
[EventType "swiss"]
[EventCountry "GRE"]
[SourceTitle "playchess.com"]
[Source "ChessBase"]
[SourceQuality "1"]
[TimeControl "40/5400+30:1800+30"]

1. d4 d5 2. c4 dxc4 3. Nf3 Nf6 4. e3 Bg4 5. Bxc4 e6 6. h3 Bh5 7. O-O a6 8. b3 {D22: Queen's Gambit Accepted: 3 Nf3 a6 4 e3} Nc6 9. Bb2 Bd6 10. Be2 O-O 11. Nbd2 Qe7 12. Rc1 Ba3 13. Bxa3 Qxa3 14. Nc4 {[#]} Qe7 $146 15. Nfe5 Bxe2 16. Nxc6 Qe8 17. Qxe2 Qxc6 18. Na5 Qb6 19. Nc4 Qb4 20. a3 Qe7 21. b4 Rad8 22. Na5 c6 23. Qc2 Nd5 24. Rfd1 f5 25. Qc5 Qc7 26. Nb3 g5 27. Nd2 Qg7 28. Qc4 $11 Kh8 29. Qe2 e5 30. dxe5 Qxe5 31. Nc4 Qf6 32. Rd3 Rfe8 33. Qb2 Kg7 34. Qxf6+ Kxf6 35. Rcd1 Rb8 36. Kf1 Re7 37. Rd4 h5 38. h4 g4 39. g3 b6 40. R1d3 Re6 41. Ke2 Ke7 42. Kd2 Nf6 43. Ke2 c5 44. Rf4 Re4 45. Rxe4+ Nxe4 46. Nb2 Rc8 47. bxc5 Rxc5 48. Nd1 b5 49. Rb3 Rc2+ 50. Ke1 Rc5 51. Ke2 a5 52. Kd3 Kd6 53. Rb2 Rc1 54. Ke2 Kc5 55. Ra2 Kc4 56. Rb2 b4 57. axb4 axb4 58. Ra2 Rxd1 59. Rc2+ Nc3+ 60. Rxc3+ bxc3 61. Kxd1 Kd3 0-1

[Event "WYCC 2018 G14"]
[Site "Halkidiki"]
[Date "2018.10.24"]
[Round "6"]
[White "Sosovickova, Jana"]
[Black "Brunner, Sophia"]
[Result "0-1"]
[ECO "C15"]
[WhiteElo "1627"]
[BlackElo "1812"]
[Annotator "NA"]
[PlyCount "94"]
[EventDate "2018.10.20"]
[EventType "swiss"]
[EventCountry "GRE"]
[SourceTitle "playchess.com"]
[Source "ChessBase"]
[SourceQuality "1"]
[TimeControl "40/5400+30:1800+30"]

1. e4 {[%emt 0:00:00]} e6 {[%emt 0:00:00]} 2. d4 {[%emt 0:00:00]} d5 {[%emt 0:00:00]} 3. Nc3 {[%emt 0:00:12]} Bb4 {[%emt 0:00:17]} 4. exd5 {[%emt 0:01:21]} exd5 {[%emt 0:00:07]} 5. Bd3 {[%emt 0:00:49]} Ne7 {[%emt 0:01:35]} 6. Nge2 {[%emt 0:03:19]} Nbc6 {[%emt 0:01:11]} 7. Be3 {[%emt 0:04:09]} Bf5 {[%emt 0:03:55]} 8. a3 {[%emt 0:03:13]} Bxc3+ {[%emt 0:05:16]} 9. Nxc3 {[%emt 0:00:32]} Qd7 {[%emt 0:08:28]} 10. Qd2 {[%emt 0:05:18]} O-O-O {[%emt 0:06:54]} 11. O-O-O {[%emt 0:04:07]} Bxd3 {[%emt 0:08:44]} 12. Qxd3 {[%emt 0:03:24]} Na5 {[%emt 0:03:56]} 13. Nb1 {[%emt 0:08:15]} Nc4 {[%emt 0:04:18]} 14. Nd2 {[%emt 0:05:24]} Qb5 {[%emt 0:06:04]} 15. Nxc4 {[%emt 0:07:03]} dxc4 {[%emt 0:00:08]} 16. Qe2 {[%emt 0:02:32]} Nd5 {[%emt 0:17:28]} 17. Bd2 {[%emt 0:10:16]} g6 {[%emt 0:04:02]} 18. Rhe1 {[%emt 0:05:57]} Rd6 {[%emt 0:01:27]} 19. Qf3 {[%emt 0:02:37]} f6 {[%emt 0:07:50]} 20. Bc3 {[%emt 0:05:22]} a5 {[%emt 0:02:18]} 21. Rd2 {[%emt 0:06:08]} Qa6 {[%emt 0:03:28]} 22. Rde2 {[%emt 0:04:16]} Kd8 {[%emt 0:02:13]} 23. Re4 {[%emt 0:04:18]} b5 {[%emt 0:06:33]} 24. Rd1 {[%emt 0:04:20]} b4 {[%emt 0:00:34]} 25. Be1 {[%emt 0:00:35]} c3 {[%emt 0:01:40]} 26. a4 {[%emt 0:02:09]} cxb2+ {[%emt 0:00:08]} 27. Kxb2 {[%emt 0:00:11]} Qc6 {[%emt 0:00:22]} 28. Re2 {[%emt 0:01:31]} Qxa4 {[%emt 0:00:48]} 29. Ra1 {[%emt 0:02:13]} Qb5 {[%emt 0:00:33]} 30. Kc1 {[%emt 0:00:44]} Nb6 {[%emt 0:01:38]} 31. Rd2 {[%emt 0:01:19]} Kd7 {[%emt 0:00:44]} 32. Qh3+ {[%emt 0:00:50]} f5 {[%emt 0:00:14]} 33. Rd1 {[%emt 0:00:33]} Nd5 {[%emt 0:01:19]} 34. Bd2 {[%emt 0:01:03]} Rc6 {[%emt 0:00:29]} 35. Qb3 {[%emt 0:00:42]} Re8 {[%emt 0:00:46]} 36. Re1 {[%emt 0:01:14]} Rxe1+ {[%emt 0:00:46]} 37. Bxe1 {[%emt 0:00:05]} Re6 {[%emt 0:00:54]} 38. Kb2 {[%emt 0:01:16]} Nb6 {[%emt 0:00:20]} 39. Rd1 {[%emt 0:00:47]} c6 {[%emt 0:00:41]} 40. Kb1 {[%emt 0:00:00]} Qf1 {[%emt 0:00:00]} 41. Ka2 {[%emt 0:06:48]} Rxe1 {[%emt 0:16:04]} 42. Qf7+ {[%emt 0:00:52]} Kc8 {[%emt 0:00:11]} 43. Qg8+ {[%emt 0:01:53]} Kc7 {[%emt 0:00:14]} 44. Qxh7+ {[%emt 0:00:33]} Nd7 {[%emt 0:00:05]} 45. Rxe1 {[%emt 0:00:48]} Qxe1 {[%emt 0:00:02]} 46. Qh4 {[%emt 0:00:35]} Qe4 {[%emt 0:04:26]} 47. Qg3+ {[%emt 0:00:54]} f4 0-1

[Event "WYCC 2018 G14"]
[Site "Halkidiki"]
[Date "2018.10.24"]
[Round "6"]
[White "Arauco Celestino, Arianna Sofia"]
[Black "Moracchini, Margaux"]
[Result "1-0"]
[ECO "A15"]
[WhiteElo "1610"]
[BlackElo "1838"]
[Annotator "NA"]
[PlyCount "61"]
[EventDate "2018.10.20"]
[EventType "swiss"]
[EventCountry "GRE"]
[SourceTitle "playchess.com"]
[Source "ChessBase"]
[SourceQuality "1"]
[TimeControl "40/5400+30:1800+30"]

1. c4 {[%emt 0:00:00]} Nf6 {[%emt 0:00:14]} 2. Nf3 {[%emt 0:00:00]} g6 {[%emt 0:01:17]} 3. g3 {[%emt 0:00:12]} Bg7 {[%emt 0:00:13]} 4. Bg2 {[%emt 0:00:09]} O-O {[%emt 0:00:20]} 5. Nc3 {[%emt 0:01:30]} d6 {[%emt 0:00:14]} 6. O-O {[%emt 0:00:07]} e5 {[%emt 0:05:32]} 7. d4 {[%emt 0:02:19]} Nbd7 {[%emt 0:00:33]} 8. dxe5 {[%emt 0:02:10]} dxe5 {[%emt 0:00:10]} 9. Qc2 {[%emt 0:05:22]} c6 {[%emt 0:09:16]} 10. Bg5 {[%emt 0:10:11]} Qe7 {[%emt 0:07:24]} 11. Rfd1 {[%emt 0:14:35]} h6 {[%emt 0:02:11]} 12. Bd2 {[%emt 0:08:11]} a5 {[%emt 0:11:16]} 13. a3 {[%emt 0:08:02]} Nb6 {[%emt 0:04:54]} 14. Qb3 {[%emt 0:02:17]} Nbd7 {[%emt 0:05:44]} 15. Na4 {[%emt 0:12:20]} Ne4 {[%emt 0:11:45]} 16. Qe3 {[%emt 0:03:31]} f5 {[%emt 0:02:46]} 17. Nh4 {[%emt 0:04:26]} Nxd2 {[%emt 0:01:56]} 18. Rxd2 {[%emt 0:04:17]} Qf7 {[%emt 0:03:03]} 19. Rd6 {[%emt 0:02:56]} g5 {[%emt 0:08:48]} 20. Ng6 {[%emt 0:00:23]} Re8 {[%emt 0:00:11]} 21. Nc5 {[%emt 0:00:19]} Nxc5 {[%emt 0:02:13]} 22. Qxc5 {[%emt 0:07:17]} e4 {[%emt 0:05:57]} 23. f4 {[%emt 0:02:47]} Be6 {[%emt 0:02:33]} 24. Ne5 {[%emt 0:00:56]} Bxe5 {[%emt 0:00:08]} 25. fxe5 {[%emt 0:00:05]} Bxc4 {[%emt 0:03:55]} 26. Bxe4 {[%emt 0:01:28]} Bxe2 {[%emt 0:02:48]} 27. Rf6 {[%emt 0:00:14]} Qc4 {[%emt 0:02:25]} 28. Qd6 {[%emt 0:02:06]} fxe4 {[%emt 0:03:37]} 29. Rg6+ {[%emt 0:00:27]} Kh7 {[%emt 0:00:15]} 30. Rxh6+ {[%emt 0:00:06]} Kg7 {[%emt 0:00:05]} 31. Qf6+ {[%emt 0:00:13]} 1-0

[Event "WYCC 2018 G14"]
[Site "Halkidiki"]
[Date "2018.10.24"]
[Round "6"]
[White "Guo, Hazel"]
[Black "Anghel, Maria"]
[Result "0-1"]
[ECO "B43"]
[WhiteElo "1262"]
[BlackElo "1801"]
[Annotator "NA"]
[PlyCount "136"]
[EventDate "2018.10.20"]
[EventType "swiss"]
[EventCountry "GRE"]
[SourceTitle "playchess.com"]
[Source "ChessBase"]
[SourceQuality "1"]
[TimeControl "40/5400+30:1800+30"]

1. e4 {[%emt 0:00:00]} c5 {[%emt 0:00:00]} 2. Nf3 {[%emt 0:00:00]} e6 {[%emt 0:00:00]} 3. Nc3 {[%emt 0:00:00]} a6 {[%emt 0:00:15]} 4. d4 {[%emt 0:00:14]} cxd4 {[%emt 0:00:15]} 5. Nxd4 {[%emt 0:00:11]} Qc7 {[%emt 0:00:18]} 6. Bd3 {[%emt 0:00:17]} Nc6 {[%emt 0:00:35]} 7. Nxc6 {[%emt 0:00:24]} bxc6 {[%emt 0:00:35]} 8. O-O {[%emt 0:01:18]} Nf6 {[%emt 0:01:58]} 9. Qe2 {[%emt 0:00:33]} d6 {[%emt 0:03:18]} 10. f4 {[%emt 0:03:03]} e5 {[%emt 0:02:57]} 11. Qf3 {[%emt 0:05:22]} Be7 {[%emt 0:18:58]} 12. Qg3 {[%emt 0:04:07]} Nh5 {[%emt 0:05:59]} 13. Qf3 {[%emt 0:03:32]} Nxf4 {[%emt 0:02:12]} 14. Bxf4 {[%emt 0:05:22]} exf4 {[%emt 0:00:10]} 15. Qxf4 {[%emt 0:00:03]} O-O {[%emt 0:01:47]} 16. Kh1 {[%emt 0:00:28]} Bf6 {[%emt 0:03:28]} 17. e5 {[%emt 0:05:02]} Bxe5 {[%emt 0:07:26]} 18. Qh4 {[%emt 0:03:46]} g6 {[%emt 0:08:07]} 19. Ne4 {[%emt 0:03:10]} f5 {[%emt 0:03:23]} 20. Qf2 {[%emt 0:09:41]} d5 {[%emt 0:06:55]} 21. Ng5 {[%emt 0:04:02]} Bxh2 {[%emt 0:05:28]} 22. Qh4 {[%emt 0:01:17]} Bg3 {[%emt 0:01:21]} 23. Qh6 {[%emt 0:07:24]} Qg7 {[%emt 0:03:41]} 24. Qxg7+ {[%emt 0:02:55]} Kxg7 {[%emt 0:00:08]} 25. Nf3 {[%emt 0:01:27]} c5 {[%emt 0:02:32]} 26. b3 Bb7 {[%emt 0:01:05]} 27. Rab1 {[%emt 0:04:52]} Rfe8 {[%emt 0:04:19]} 28. Rbd1 {[%emt 0:03:23]} Re3 {[%emt 0:03:52]} 29. a3 {[%emt 0:02:42]} Rc8 {[%emt 0:05:41]} 30. c4 {[%emt 0:01:07]} Rd8 {[%emt 0:03:52]} 31. b4 {[%emt 0:06:37]} cxb4 {[%emt 0:01:59]} 32. axb4 {[%emt 0:00:18]} dxc4 {[%emt 0:01:33]} 33. Bxc4 {[%emt 0:00:10]} Rde8 {[%emt 0:01:05]} 34. Ra1 {[%emt 0:02:45]} Bd6 {[%emt 0:01:12]} 35. Bxa6 {[%emt 0:02:30]} Bxa6 {[%emt 0:00:26]} 36. Rxa6 {[%emt 0:00:12]} Bxb4 {[%emt 0:00:26]} 37. Raa1 {[%emt 0:01:49]} h6 {[%emt 0:00:38]} 38. Kh2 {[%emt 0:00:41]} Bd6+ {[%emt 0:00:25]} 39. Kh1 {[%emt 0:00:15]} Bg3 {[%emt 0:00:36]} 40. Ra7+ {[%emt 0:00:00]} R8e7 {[%emt 0:00:00]} 41. Ra5 {[%emt 0:00:44]} Kf6 {[%emt 0:04:31]} 42. Ra6+ {[%emt 0:01:15]} R7e6 {[%emt 0:00:36]} 43. Raa1 {[%emt 0:01:15]} Rd6 {[%emt 0:02:15]} 44. Ra5 {[%emt 0:03:36]} f4 {[%emt 0:11:23]} 45. Ra4 {[%emt 0:02:04]} g5 {[%emt 0:01:48]} 46. Raa1 {[%emt 0:01:14]} h5 {[%emt 0:03:02]} 47. Rab1 {[%emt 0:01:00]} g4 {[%emt 0:02:22]} 48. Ng1 {[%emt 0:04:19]} Rd2 {[%emt 0:04:04]} 49. Rb6+ {[%emt 0:01:35]} Re6 {[%emt 0:02:20]} 50. Rb3 {[%emt 0:00:59]} Kg6 {[%emt 0:01:03]} 51. Ra3 {[%emt 0:00:58]} h4 {[%emt 0:00:57]} 52. Nh3 {[%emt 0:02:45]} gxh3 {[%emt 0:00:34]} 53. gxh3 {[%emt 0:00:31]} Kf5 {[%emt 0:02:01]} 54. Ra5+ {[%emt 0:00:42]} Re5 {[%emt 0:00:29]} 55. Ra8 {[%emt 0:01:20]} Ke4 {[%emt 0:00:32]} 56. Ra4+ {[%emt 0:00:22]} Rd4 {[%emt 0:00:33]} 57. Ra8 {[%emt 0:00:39]} f3 {[%emt 0:00:29]} 58. Rg8 {[%emt 0:00:26]} Rd2 {[%emt 0:00:30]} 59. Ra8 {[%emt 0:00:45]} Rh2+ {[%emt 0:00:23]} 60. Kg1 {[%emt 0:00:06]} f2+ {[%emt 0:00:14]} 61. Rxf2 {[%emt 0:00:05]} Rxf2 {[%emt 0:00:12]} 62. Ra3 {[%emt 0:00:51]} Kf5 {[%emt 0:00:29]} 63. Ra1 {[%emt 0:00:23]} Rfe2 {[%emt 0:00:58]} 64. Ra8 {[%emt 0:00:43]} Re1+ {[%emt 0:00:37]} 65. Kg2 {[%emt 0:00:07]} R1e3 {[%emt 0:00:29]} 66. Kf1 {[%emt 0:00:49]} Rf3+ {[%emt 0:00:31]} 67. Kg1 {[%emt 0:00:11]} Re1+ {[%emt 0:00:08]} 68. Kg2 {[%emt 0:00:05]} Rf2# {[%emt 0:00:07]} 0-1

[Event "WYCC 2018 G14"]
[Site "Halkidiki"]
[Date "2018.10.26"]
[Round "7"]
[White "Nurgali, Nazerke"]
[Black "Garifullina, Leya"]
[Result "0-1"]
[ECO "E09"]
[WhiteElo "2263"]
[BlackElo "2106"]
[Annotator "NA"]
[PlyCount "80"]
[EventDate "2018.10.20"]
[EventType "swiss"]
[EventCountry "GRE"]
[SourceTitle "playchess.com"]
[Source "ChessBase"]
[SourceQuality "1"]
[TimeControl "40/5400+30:1800+30"]

1. d4 Nf6 2. c4 e6 3. g3 d5 4. Nf3 Be7 5. Bg2 O-O 6. O-O Nbd7 7. Qc2 c6 8. Nbd2 b6 9. e4 dxc4 10. Nxc4 Bb7 11. Ne3 c5 12. d5 exd5 13. exd5 Nxd5 14. Nxd5 Bxd5 15. Rd1 Be6 16. Ne5 Nxe5 17. Rxd8 $11 Raxd8 18. Bd2 Nd3 19. Be4 c4 20. Be3 Bf6 21. Rb1 g6 22. h4 Rd7 23. Qe2 Rc8 24. h5 Bh8 25. a4 Nc5 26. Bc2 Nb3 27. hxg6 hxg6 28. Be4 Bg7 29. Re1 Rdd8 30. a5 Nc5 31. Bxc5 Rxc5 32. axb6 axb6 33. Qc2 Re5 34. Re2 Bf6 35. f4 Rb5 36. Qc1 Bg4 37. Re1 Rxb2 38. Bc2 c3 39. f5 Rd2 40. fxg6 Bd4+ 0-1

[Event "WYCC 2018 G14"]
[Site "Halkidiki"]
[Date "2018.10.26"]
[Round "7"]
[White "Caglar, Sila"]
[Black "Ning, Kaiyu"]
[Result "0-1"]
[ECO "C00"]
[WhiteElo "2184"]
[BlackElo "2217"]
[Annotator "NA"]
[PlyCount "108"]
[EventDate "2018.10.20"]
[EventType "swiss"]
[EventCountry "GRE"]
[SourceTitle "playchess.com"]
[Source "ChessBase"]
[SourceQuality "1"]
[TimeControl "40/5400+30:1800+30"]

1. e4 {[%emt 0:00:00]} e6 {[%emt 0:00:00]} 2. d4 {[%emt 0:00:00]} a6 {[%emt 0:00:00]} 3. Nf3 {[%emt 0:00:53]} d5 {[%emt 0:00:00]} 4. e5 {[%emt 0:00:06]} c5 {[%emt 0:00:28]} 5. c3 {[%emt 0:00:25]} Nc6 {[%emt 0:00:07]} 6. Bd3 {[%emt 0:00:43]} cxd4 {[%emt 0:01:11]} 7. cxd4 {[%emt 0:00:22]} Nge7 {[%emt 0:00:04]} 8. Nc3 {[%emt 0:04:14]} Nf5 {[%emt 0:01:27]} 9. Bxf5 {[%emt 0:05:59]} exf5 {[%emt 0:00:03]} 10. Bg5 {[%emt 0:00:11]} Be7 {[%emt 0:05:46]} 11. Bxe7 {[%emt 0:00:36]} Nxe7 {[%emt 0:00:05]} 12. O-O $14 {[%emt 0:02:18]} O-O {[%emt 0:00:24]} 13. Qb3 {[%emt 0:01:50]} Rb8 {[%emt 0:07:22]} 14. a4 {[%emt 0:05:01]} Be6 {[%emt 0:12:20]} 15. a5 {[%emt 0:13:01]} Nc6 {[%emt 0:07:16]} 16. Qb6 {[%emt 0:04:15]} Qxb6 {[%emt 0:09:44]} 17. axb6 {[%emt 0:00:10]} Rfc8 {[%emt 0:01:58]} 18. Rac1 {[%emt 0:07:32]} Nb4 {[%emt 0:22:02]} 19. Na4 {[%emt 0:14:51]} Nd3 {[%emt 0:00:21]} 20. Rcd1 {[%emt 0:18:57]} Bd7 {[%emt 0:00:03]} 21. Nc3 {[%emt 0:11:17]} Nb4 {[%emt 0:02:56]} 22. Nd2 {[%emt 0:03:14]} Rc6 {[%emt 0:01:33]} 23. Nb3 {[%emt 0:02:42]} Rxb6 {[%emt 0:00:19]} 24. Nc5 {[%emt 0:00:08]} Be6 {[%emt 0:00:35]} 25. f4 {[%emt 0:02:09]} Rc6 {[%emt 0:00:27]} 26. Rf2 {[%emt 0:01:17]} b6 {[%emt 0:00:53]} 27. Nd3 {[%emt 0:00:43]} Nxd3 {[%emt 0:00:20]} 28. Rxd3 {[%emt 0:00:01]} b5 {[%emt 0:00:36]} 29. b4 {[%emt 0:00:42]} Rbc8 {[%emt 0:10:54]} 30. Na2 {[%emt 0:00:29]} Rc4 {[%emt 0:04:54]} 31. h4 {[%emt 0:00:49]} g6 {[%emt 0:01:43]} 32. g3 {[%emt 0:00:24]} Kg7 {[%emt 0:00:18]} 33. Rfd2 {[%emt 0:00:30]} h6 {[%emt 0:02:03]} 34. Kf2 {[%emt 0:00:29]} g5 {[%emt 0:02:56]} 35. Ra3 {[%emt 0:00:35]} R8c6 {[%emt 0:00:31]} 36. hxg5 {[%emt 0:00:27]} hxg5 {[%emt 0:00:03]} 37. Ke2 {[%emt 0:00:30]} f6 {[%emt 0:00:54]} 38. exf6+ {[%emt 0:00:32]} Kxf6 {[%emt 0:00:05]} 39. Kd3 {[%emt 0:00:14]} Bf7 {[%emt 0:02:17]} 40. Rh2 {[%emt 0:00:00]} gxf4 {[%emt 0:00:00]} 41. gxf4 {[%emt 0:03:27]} Ke7 {[%emt 0:02:00]} 42. Re2+ {[%emt 0:03:36]} Kd7 {[%emt 0:00:08]} 43. Rh2 {[%emt 0:10:11]} Rg6 {[%emt 0:02:10]} 44. Rh3 {[%emt 0:00:12]} Ke7 {[%emt 0:03:26]} 45. Ra5 {[%emt 0:05:27]} Rcc6 {[%emt 0:03:33]} 46. Ra3 {[%emt 0:00:41]} Rg4 {[%emt 0:01:00]} 47. Rf3 {[%emt 0:01:12]} Rh4 {[%emt 0:00:58]} 48. Nc3 {[%emt 0:00:50]} Kd6 {[%emt 0:00:17]} 49. Nd1 {[%emt 0:04:35]} Bh5 {[%emt 0:10:41]} 50. Ne3 {[%emt 0:00:05]} Rh2 {[%emt 0:00:20]} 51. Nxf5+ {[%emt 0:03:41]} Kc7 {[%emt 0:00:30]} 52. Re3 {[%emt 0:01:14]} Bg6 {[%emt 0:00:09]} 53. Re7+ {[%emt 0:00:29]} Kb6 {[%emt 0:00:10]} 54. Re5 {[%emt 0:00:46]} Bxf5+ {[%emt 0:00:58]} 0-1

[Event "WYCC 2018 G14"]
[Site "Halkidiki"]
[Date "2018.10.26"]
[Round "7"]
[White "Song, Yuxin"]
[Black "Dhyana Patel"]
[Result "1-0"]
[ECO "B27"]
[WhiteElo "2178"]
[BlackElo "2002"]
[Annotator "NA"]
[PlyCount "135"]
[EventDate "2018.10.20"]
[EventType "swiss"]
[EventCountry "GRE"]
[SourceTitle "playchess.com"]
[Source "ChessBase"]
[SourceQuality "1"]
[TimeControl "40/5400+30:1800+30"]

1. e4 {[%emt 0:00:00]} c5 {[%emt 0:00:00]} 2. Nf3 {[%emt 0:00:00]} g6 {[%emt 0:00:33]} 3. c4 {[%emt 0:00:00]} Nc6 {[%emt 0:00:24]} 4. d4 {[%emt 0:00:00]} cxd4 {[%emt 0:00:20]} 5. Nxd4 {[%emt 0:00:04]} Nf6 {[%emt 0:00:44]} 6. Nc3 {[%emt 0:00:19]} d6 {[%emt 0:00:45]} 7. Be2 {[%emt 0:00:08]} Nxd4 {[%emt 0:00:51]} 8. Qxd4 {[%emt 0:00:01]} Bg7 {[%emt 0:00:39]} 9. Bg5 {[%emt 0:00:13]} O-O {[%emt 0:00:59]} 10. Qd2 {[%emt 0:00:07]} Qa5 {[%emt 0:01:33]} 11. O-O {[%emt 0:00:19]} Be6 {[%emt 0:02:35]} 12. Rac1 {[%emt 0:02:07]} Rfc8 {[%emt 0:02:37]} 13. b3 {[%emt 0:01:33]} a6 {[%emt 0:01:11]} 14. f3 {[%emt 0:02:44]} b5 {[%emt 0:08:22]} 15. Nd5 {[%emt 0:05:21]} Qxd2 {[%emt 0:00:21]} 16. Bxd2 {[%emt 0:00:09]} Nxd5 {[%emt 0:07:27]} 17. exd5 {[%emt 0:01:15]} Bd7 {[%emt 0:00:14]} 18. Be3 {[%emt 0:04:22]} bxc4 {[%emt 0:04:53]} 19. bxc4 {[%emt 0:03:11]} Rcb8 {[%emt 0:03:55]} 20. Rb1 {[%emt 0:08:28]} Bf5 {[%emt 0:02:10]} 21. Rb3 {[%emt 0:06:18]} Rxb3 {[%emt 0:06:18]} 22. axb3 {[%emt 0:00:01]} Rb8 {[%emt 0:00:09]} 23. Bd1 {[%emt 0:00:16]} a5 {[%emt 0:02:13]} 24. Rf2 {[%emt 0:05:11]} Bc3 {[%emt 0:04:26]} 25. Ra2 {[%emt 0:00:18]} Bb1 {[%emt 0:00:43]} 26. Ra4 {[%emt 0:00:10]} Kg7 {[%emt 0:02:24]} 27. Kf2 {[%emt 0:00:23]} Bd3 {[%emt 0:00:36]} 28. Bc1 {[%emt 0:03:27]} Rb4 {[%emt 0:03:29]} 29. Ra3 {[%emt 0:09:58]} Rb8 {[%emt 0:14:21]} 30. g3 {[%emt 0:01:37]} Bf5 {[%emt 0:03:58]} 31. Ke3 {[%emt 0:02:07]} Bb4 {[%emt 0:01:05]} 32. Ra2 {[%emt 0:00:29]} Bd7 {[%emt 0:02:23]} 33. Bd2 {[%emt 0:00:59]} Rb7 {[%emt 0:04:36]} 34. Bxb4 {[%emt 0:00:49]} axb4 {[%emt 0:00:02]} 35. Ra6 {[%emt 0:00:18]} Kf8 {[%emt 0:03:04]} 36. Kd4 {[%emt 0:00:57]} Rb8 {[%emt 0:00:53]} 37. f4 {[%emt 0:02:38]} Ke8 {[%emt 0:01:12]} 38. c5 {[%emt 0:03:47]} dxc5+ {[%emt 0:00:48]} 39. Kxc5 {[%emt 0:00:02]} Rb5+ {[%emt 0:00:16]} 40. Kc4 {[%emt 0:00:00]} Rb8 {[%emt 0:00:00]} 41. Ra7 {[%emt 0:00:29]} Kd8 {[%emt 0:01:01]} 42. Bf3 {[%emt 0:02:10]} h6 {[%emt 0:00:40]} 43. Kc5 {[%emt 0:01:59]} Rb5+ {[%emt 0:00:17]} 44. Kd4 {[%emt 0:00:11]} Rb8 {[%emt 0:00:34]} 45. Be2 {[%emt 0:00:53]} g5 {[%emt 0:02:38]} 46. fxg5 {[%emt 0:01:56]} hxg5 {[%emt 0:00:01]} 47. h4 {[%emt 0:00:01]} gxh4 {[%emt 0:01:19]} 48. gxh4 {[%emt 0:01:01]} Rb6 {[%emt 0:00:22]} 49. Ra6 {[%emt 0:01:05]} Rg6 {[%emt 0:01:31]} 50. h5 {[%emt 0:02:21]} Rg2 {[%emt 0:00:39]} 51. Bd3 {[%emt 0:02:39]} Rg4+ {[%emt 0:00:50]} 52. Kc5 {[%emt 0:00:28]} Rh4 {[%emt 0:01:46]} 53. h6 {[%emt 0:01:29]} f5 {[%emt 0:00:42]} 54. Ra8+ {[%emt 0:02:13]} Kc7 {[%emt 0:00:49]} 55. h7 {[%emt 0:00:12]} Bc8 {[%emt 0:00:43]} 56. Bxf5 {[%emt 0:00:13]} Bxf5 {[%emt 0:00:24]} 57. h8=Q {[%emt 0:00:08]} Rxh8 {[%emt 0:00:40]} 58. Rxh8 {[%emt 0:00:06]} Bc2 {[%emt 0:00:07]} 59. Rh3 {[%emt 0:00:36]} Kd7 {[%emt 0:00:27]} 60. Re3 {[%emt 0:00:24]} Bf5 {[%emt 0:00:18]} 61. Re2 {[%emt 0:00:53]} Bd3 {[%emt 0:00:25]} 62. Rd2 {[%emt 0:00:07]} Be4 {[%emt 0:00:04]} 63. Rd4 {[%emt 0:00:04]} Bf5 {[%emt 0:00:25]} 64. Rxb4 {[%emt 0:00:07]} e6 {[%emt 0:00:10]} 65. d6 {[%emt 0:00:26]} e5 {[%emt 0:00:12]} 66. Rb7+ {[%emt 0:00:05]} Kc8 {[%emt 0:00:16]} 67. Re7 {[%emt 0:00:12]} e4 {[%emt 0:00:05]} 68. b4 {[%emt 0:00:13]} 1-0